[Event "French-ch U12-U14 2024"]
[Site "Agen"]
[Date "2024.04.21"]
[Round "9.2"]
[White "Benhadid, Jeilynn"]
[Black "Anseeuw, Emma"]
[Result "1-0"]
[ECO "D24"]
[WhiteElo "1844"]
[BlackElo "1667"]
[Annotator "NA RC COMBH"]
[PlyCount "135"]
[EventDate "2024.04.14"]
[EventType "swiss"]
[EventCountry "FRA"]
[SourceTitle "playchess.com"]
[Source "ChessBase"]
[SourceQuality "1"]
[TimeControl "5400+30"]

1. d4 {[%emt 0:00:10]} d5 {[%emt 0:00:10]} 2. c4 {[%emt 0:00:14]} dxc4 {[%emt 0:00:13]} 3. e3 {[%emt 0:00:54]} Nf6 {[%emt 0:00:33]} 4. Bxc4 {[%emt 0:00:48]} e6 {[%emt 0:00:26]} 5. Nc3 {[%emt 0:01:02]} a6 {[%emt 0:00:26]} 6. a4 {[%emt 0:01:46]} b6 {[%emt 0:02:21]} 7. Nf3 {[%emt 0:01:53]} Bb7 {[%emt 0:02:05]} 8. O-O {[%emt 0:02:40]} Nbd7 {[%emt 0:04:39]} 9. Re1 {[%emt 0:04:44] D24: Queen's Gambit Accepted: 3 Nf3 Nf6 4 Nc3.} Bb4 {[%emt 0:09:24]} 10. Nd2 {[%emt 0:07:20]} (10. Qb3 $11 c5 11. e4) 10... O-O {[%emt 0:13:42]} 11. Na2 {[%emt 0:12:19]} (11. Qe2 $11) 11... Be7 {[%emt 0:01:55]} 12. b4 {[%emt 0:09:10]} e5 {[%emt 0:11:43]} (12... c5 $15 {feels stronger.}) 13. Bb2 {[%emt 0:06:09]} exd4 {[%emt 0:03:26]} 14. Bxd4 {[%emt 0:00:50]} c5 {[%emt 0:00:34]} 15. Bc3 {[%emt 0:04:40]} Nd5 {[%emt 0:01:12]} 16. Bxd5 {[%emt 0:06:41]} Bxd5 {[%emt 0:00:24]} 17. Qb1 {[%emt 0:03:35]} (17. Nb3 $11 Be6 18. bxc5) 17... Bf6 {[%emt 0:06:20]} (17... Re8 $17) 18. Bxf6 {[%emt 0:04:33]} Qxf6 {[%emt 0:00:25]} 19. e4 {[%emt 0:10:20]} (19. Ne4 $15 {feels stronger.} Qh4 20. Nd2) 19... Bb7 {[%emt 0:02:40]} 20. Qb3 {[%emt 0:02:23]} (20. Qc2 $15) 20... Rac8 {[%emt 0:02:02]} 21. Rac1 {[%emt 0:01:46] [#]} Rfd8 $1 {[%emt 0:02:38]} 22. Nf3 {[%emt 0:02:23]} Ne5 {[%emt 0:02:03]} ({Black should try} 22... cxb4 $17 23. Rxc8 Rxc8 24. Nxb4 Nc5) 23. Nxe5 {[%emt 0:02:42]} Qxe5 {[%emt 0:00:50]} 24. f3 {[%emt 0:01:17]} Rd2 {[%emt 0:00:34]} 25. Qc3 {[%emt 0:06:38]} Qxc3 {[%emt 0:00:22]} 26. Nxc3 {[%emt 0:00:04]} cxb4 {[%emt 0:00:35]} 27. Nd5 {[%emt 0:00:16]} Rxc1 {[%emt 0:01:27]} 28. Rxc1 {[%emt 0:00:04]} g6 {[%emt 0:00:46]} 29. Nxb4 {[%emt 0:00:46]} a5 {[%emt 0:01:16]} 30. Nc6 $1 {[%emt 0:02:46]} Ra2 {[%emt 0:02:59]} 31. Ne7+ {[%emt 0:02:24]} Kf8 {[%emt 0:01:46]} 32. Rc7 {[%emt 0:01:02]} Ba8 $2 {[%emt 0:02:49]} (32... Ra1+ $11 33. Kf2 Ba6) 33. Nc8 {[%emt 0:00:52]} Rb2 {[%emt 0:02:08]} 34. Nxb6 {[%emt 0:00:32]} Bxe4 {[%emt 0:02:31]} 35. Nd7+ {[%emt 0:00:24]} Ke8 {[%emt 0:02:21]} 36. fxe4 {[%emt 0:00:19]} Rb4 {[%emt 0:00:22]} 37. Ra7 {[%emt 0:01:06]} Rxa4 {[%emt 0:00:27]} 38. Nc5 {[%emt 0:00:12]} Ra2 {[%emt 0:00:35]} 39. h3 {[%emt 0:00:33]} h6 {[%emt 0:00:41]} 40. Kh2 {[%emt 0:00:07]} Ra3 {[%emt 0:00:27]} 41. Nb7 {[%emt 0:00:52]} Ra4 {[%emt 0:01:05]} 42. Rxa5 {[%emt 0:00:09]} Rxa5 {[%emt 0:00:18]} 43. Nxa5 {[%emt 0:00:04]} Ke7 {[%emt 0:00:04]} 44. Kg3 {[%emt 0:00:08]} Ke6 {[%emt 0:00:21]} 45. Kf4 {[%emt 0:00:16]} f6 {[%emt 0:00:35]} 46. Nc4 {[%emt 0:00:18]} Ke7 {[%emt 0:00:34]} 47. e5 {[%emt 0:00:30]} Ke6 {[%emt 0:00:43]} 48. exf6 {[%emt 0:00:41]} Kxf6 {[%emt 0:00:14]} 49. Ne3 {[%emt 0:00:13]} h5 {[%emt 0:00:57]} 50. h4 {[%emt 0:00:13]} Kg7 {[%emt 0:00:17]} 51. Kg5 {[%emt 0:00:09]} Kh7 {[%emt 0:00:30]} 52. Nc4 {[%emt 0:00:09]} Kg7 {[%emt 0:00:14]} 53. Ne5 {[%emt 0:00:04]} Kh7 {[%emt 0:00:19]} 54. Nxg6 {[%emt 0:00:07]} Kg7 {[%emt 0:00:05]} 55. Kxh5 {[%emt 0:00:10]} Kh7 {[%emt 0:00:15]} 56. g4 {[%emt 0:00:08]} Kg7 {[%emt 0:00:12]} 57. g5 {[%emt 0:00:10]} Kh7 {[%emt 0:00:08]} 58. Nf4 {[%emt 0:00:19]} Kg7 {[%emt 0:00:06]} 59. g6 {[%emt 0:00:08]} Kh8 {[%emt 0:00:11]} 60. Kh6 {[%emt 0:00:11]} (60. Ne6 $142 Kg8 61. Kg5 Kh8 62. Kf6 Kg8 63. g7 Kh7 64. Kf7 Kh6 65. g8=Q Kh5 66. Qg5#) 60... Kg8 {[%emt 0:00:09]} 61. g7 {[%emt 0:00:07]} Kf7 {[%emt 0:00:08]} 62. Kh7 {[%emt 0:00:03]} Kf6 {[%emt 0:00:12]} 63. g8=Q {[%emt 0:00:08]} Ke7 {[%emt 0:00:33]} 64. Qg6 {[%emt 0:00:18]} Kf8 {[%emt 0:00:16]} 65. Qg7+ {[%emt 0:00:15]} (65. Qe4 $142 Kf7 66. Qe6+ Kf8 67. Ng6#) 65... Ke8 {[%emt 0:00:13]} 66. Nd5 {[%emt 0:00:14]} Kd8 {[%emt 0:00:09]} 67. Qe7+ {[%emt 0:00:03]} Kc8 {[%emt 0:00:09]} 68. Qc7# {[%emt 0:00:08]} 1-0

[Event "French-ch U12-U14 2024"]
[Site "Agen"]
[Date "2024.04.21"]
[Round "9.4"]
[White "Manouvel, Maelys"]
[Black "Fei, Emie"]
[Result "1/2-1/2"]
[ECO "B37"]
[WhiteElo "1541"]
[BlackElo "1522"]
[Annotator "NA COMBH"]
[PlyCount "184"]
[EventDate "2024.04.14"]
[EventType "swiss"]
[EventCountry "FRA"]
[SourceTitle "playchess.com"]
[Source "ChessBase"]
[SourceQuality "1"]
[TimeControl "5400+30"]

1. e4 {[%emt 0:01:54]} c5 {[%emt 0:00:14]} 2. Nf3 {[%emt 0:00:10]} Nc6 {[%emt 0:00:19]} 3. d4 {[%emt 0:00:43]} cxd4 {[%emt 0:00:22]} 4. Nxd4 {[%emt 0:00:30]} g6 {[%emt 0:00:20]} 5. c4 {[%emt 0:01:09]} Bg7 {[%emt 0:00:41]} 6. Nc2 {[%emt 0:00:32]} Nf6 {[%emt 0:01:06]} 7. Nc3 {[%emt 0:01:35]} O-O {[%emt 0:02:25]} 8. Be2 {[%emt 0:01:22]} d6 {[%emt 0:00:49]} 9. Be3 {[%emt 0:02:33]} b6 {[%emt 0:03:19]} 10. O-O {[%emt 0:01:36]} Bb7 {[%emt 0:01:07]} 11. Rc1 {[%emt 0:03:52]} Rc8 {[%emt 0:02:16]} 12. f4 {[%emt 0:05:11]} Na5 {[%emt 0:05:53]} 13. b3 {[%emt 0:06:09]} Nxe4 {[%emt 0:02:44]} 14. Nxe4 {[%emt 0:01:01]} Bxe4 {[%emt 0:00:39]} 15. Bd3 {[%emt 0:03:21]} Bb7 {[%emt 0:04:38]} 16. f5 {[%emt 0:02:24]} e6 {[%emt 0:04:05]} 17. fxg6 {[%emt 0:02:20]} fxg6 {[%emt 0:00:55]} 18. Qg4 {[%emt 0:03:44]} Qd7 {[%emt 0:06:02]} 19. Nd4 {[%emt 0:03:05]} Rce8 {[%emt 0:03:26]} 20. Nb5 {[%emt 0:08:52]} Bc8 {[%emt 0:10:36]} 21. b4 {[%emt 0:04:28]} Nc6 {[%emt 0:03:11]} 22. a3 {[%emt 0:05:23]} a6 {[%emt 0:01:24]} 23. Nd4 {[%emt 0:03:55]} Nxd4 {[%emt 0:04:37]} 24. Bxd4 {[%emt 0:00:21]} Bxd4+ {[%emt 0:02:25]} 25. Qxd4 {[%emt 0:00:48]} Qc6 {[%emt 0:01:17]} 26. Be4 {[%emt 0:03:16]} Qc7 {[%emt 0:05:06]} 27. c5 {[%emt 0:05:24]} bxc5 {[%emt 0:02:45]} 28. bxc5 {[%emt 0:00:49]} d5 {[%emt 0:00:27]} 29. Bf3 {[%emt 0:06:04]} Bd7 {[%emt 0:00:50]} 30. c6 {[%emt 0:01:06]} Bxc6 {[%emt 0:02:33]} 31. Qc5 {[%emt 0:01:30]} Rc8 {[%emt 0:00:25]} 32. Bxd5 {[%emt 0:02:23]} exd5 {[%emt 0:00:23]} 33. Rxf8+ {[%emt 0:00:15]} Rxf8 {[%emt 0:00:13]} 34. Qxc6 {[%emt 0:00:17]} Qxc6 {[%emt 0:00:09]} 35. Rxc6 {[%emt 0:00:04]} a5 {[%emt 0:01:07]} 36. Rc5 {[%emt 0:00:55]} d4 {[%emt 0:00:21]} 37. Rxa5 {[%emt 0:01:00]} Rb8 {[%emt 0:01:40]} 38. Ra4 {[%emt 0:02:21]} d3 {[%emt 0:00:44]} 39. Rd4 {[%emt 0:01:51]} Rb3 {[%emt 0:00:11]} 40. a4 {[%emt 0:00:25]} Ra3 {[%emt 0:00:15]} 41. Kf2 {[%emt 0:01:40]} h5 {[%emt 0:00:26]} 42. h4 {[%emt 0:00:34]} Kf7 {[%emt 0:00:07]} 43. g3 {[%emt 0:00:47]} Kf6 {[%emt 0:00:53]} 44. Rf4+ {[%emt 0:01:02]} Ke5 {[%emt 0:00:53]} 45. Ke3 {[%emt 0:00:44]} d2+ {[%emt 0:00:31]} 46. Kxd2 {[%emt 0:00:11]} Rxg3 {[%emt 0:00:05]} 47. Rb4 {[%emt 0:00:29]} Rg2+ {[%emt 0:01:42]} 48. Ke3 {[%emt 0:00:24]} Rg3+ {[%emt 0:00:21]} 49. Kf2 {[%emt 0:00:20]} Ra3 {[%emt 0:00:08]} 50. Rb5+ {[%emt 0:01:25]} Kf6 {[%emt 0:00:36]} 51. a5 {[%emt 0:00:28]} Kg7 {[%emt 0:00:43]} 52. Ke2 {[%emt 0:01:50]} Ra4 {[%emt 0:00:48]} 53. Kd3 {[%emt 0:00:46]} Rxh4 {[%emt 0:00:21]} 54. a6 {[%emt 0:00:15]} Ra4 {[%emt 0:00:49]} 55. Rb7+ {[%emt 0:00:19]} Kh6 {[%emt 0:00:51]} 56. a7 {[%emt 0:00:17]} h4 {[%emt 0:00:06]} 57. Kc3 {[%emt 0:00:59]} g5 {[%emt 0:00:46]} 58. Kb3 {[%emt 0:00:26]} Ra1 {[%emt 0:00:49]} 59. Kb2 {[%emt 0:00:13]} Ra4 {[%emt 0:00:25]} 60. Kb3 {[%emt 0:00:09]} Ra1 {[%emt 0:00:04]} 61. Kb2 {[%emt 0:00:05]} Ra4 {[%emt 0:00:22]} 62. Kb3 {[%emt 0:00:09]} Ra6 {[%emt 0:01:48]} 63. Kc3 {[%emt 0:00:10]} g4 {[%emt 0:00:15]} 64. Rb6+ {[%emt 0:00:11]} Rxb6 {[%emt 0:01:17]} 65. a8=Q {[%emt 0:00:06]} g3 {[%emt 0:00:46]} 66. Qh8+ {[%emt 0:00:17]} Kg5 {[%emt 0:00:35]} 67. Qd8+ {[%emt 0:00:15]} Rf6 {[%emt 0:00:12]} 68. Qg8+ {[%emt 0:00:18]} Rg6 {[%emt 0:00:10]} 69. Qd5+ {[%emt 0:00:04]} Kh6 {[%emt 0:00:47]} 70. Qg2 {[%emt 0:01:12]} Kh5 {[%emt 0:00:42]} 71. Kd3 {[%emt 0:00:57]} Rf6 {[%emt 0:01:09]} 72. Ke3 {[%emt 0:01:26]} Rf2 {[%emt 0:00:42]} 73. Qd5+ {[%emt 0:00:13]} Kg4 {[%emt 0:00:28]} 74. Qe6+ {[%emt 0:00:31]} Kg5 {[%emt 0:00:14]} 75. Qe7+ {[%emt 0:00:42]} Kh5 {[%emt 0:00:16]} 76. Qe6 {[%emt 0:01:14]} Kg5 {[%emt 0:00:25]} 77. Qh3 {[%emt 0:00:19]} Kh5 {[%emt 0:00:25]} 78. Qe6 {[%emt 0:00:58]} Kg5 {[%emt 0:00:29]} 79. Qg8+ {[%emt 0:00:19]} Kh5 {[%emt 0:00:15]} 80. Qg7 {[%emt 0:00:50]} Rf5 {[%emt 0:01:52]} 81. Qh7+ {[%emt 0:01:33]} Kg5 {[%emt 0:00:14]} 82. Ke4 {[%emt 0:00:40]} Rf2 {[%emt 0:00:39]} 83. Ke3 {[%emt 0:00:24]} Kg4 {[%emt 0:00:35]} 84. Qg6+ {[%emt 0:00:45]} Kh3 {[%emt 0:00:31]} 85. Qg5 {[%emt 0:00:50]} Rf8 {[%emt 0:00:45]} 86. Qg7 {[%emt 0:01:10]} Rf2 {[%emt 0:00:14]} 87. Qh6 {[%emt 0:01:28]} Rf1 {[%emt 0:00:23]} 88. Qe6+ {[%emt 0:01:35]} Kh2 {[%emt 0:00:36]} 89. Qd6 {[%emt 0:01:33]} h3 {[%emt 0:00:29]} 90. Ke2 {[%emt 0:01:01]} Rf2+ {[%emt 0:00:29]} 91. Ke1 {[%emt 0:00:34]} Kg2 {[%emt 0:00:33]} 92. Qd5+ {[%emt 0:00:49]} Kh2 {[%emt 0:00:58]} 1/2-1/2

[Event "French-ch U12-U14 2024"]
[Site "Agen"]
[Date "2024.04.21"]
[Round "9.5"]
[White "Findeling Creus, Anais"]
[Black "Duchatel, Cyrielle"]
[Result "0-1"]
[ECO "B28"]
[WhiteElo "1491"]
[BlackElo "1646"]
[Annotator "NA RC COMBH"]
[PlyCount "128"]
[EventDate "2024.04.14"]
[EventType "swiss"]
[EventCountry "FRA"]
[SourceTitle "playchess.com"]
[Source "ChessBase"]
[SourceQuality "1"]
[TimeControl "5400+30"]

1. e4 {[%emt 0:00:01]} c5 {[%emt 0:00:18]} 2. Nf3 {[%emt 0:00:23]} a6 {[%emt 0:00:21]} 3. d4 {[%emt 0:00:54]} cxd4 {[%emt 0:00:28]} 4. Nxd4 {[%emt 0:00:16]} Nf6 {[%emt 0:00:35]} 5. Nc3 {[%emt 0:00:38]} e5 {[%emt 0:00:29]} 6. Nf3 {[%emt 0:04:23]} Bb4 {[%emt 0:00:40]} 7. Bd2 {[%emt 0:05:06]} d6 {[%emt 0:00:58]} 8. Bd3 {[%emt 0:01:29]} O-O {[%emt 0:00:55]} 9. a3 {[%emt 0:01:24]} Bc5 {[%emt 0:01:05]} 10. O-O {[%emt 0:01:02]} Re8 {[%emt 0:01:11]} 11. Bc4 {[%emt 0:01:03]} b5 {[%emt 0:02:58]} 12. Bd5 {[%emt 0:03:18]} Nxd5 {[%emt 0:00:30]} 13. Nxd5 {[%emt 0:00:08]} Bb7 {[%emt 0:00:47]} 14. Bc3 {[%emt 0:03:22]} Nd7 {[%emt 0:01:31]} 15. Qd3 {[%emt 0:03:34]} Nf6 {[%emt 0:01:29]} 16. Nxf6+ {[%emt 0:02:54]} Qxf6 {[%emt 0:01:59]} 17. Rad1 {[%emt 0:02:00]} Rad8 {[%emt 0:02:50]} 18. b4 {[%emt 0:04:14]} Bb6 {[%emt 0:01:00]} 19. Bb2 {[%emt 0:00:20]} Qg6 {[%emt 0:02:15]} 20. Rfe1 {[%emt 0:01:38]} f6 {[%emt 0:03:00]} 21. Qb3+ {[%emt 0:01:32]} Kh8 {[%emt 0:00:30]} 22. Nd2 {[%emt 0:05:23]} f5 {[%emt 0:02:42]} 23. Qf3 {[%emt 0:07:00]} Rf8 {[%emt 0:01:08]} 24. Qg3 {[%emt 0:02:27]} fxe4 {[%emt 0:01:49]} 25. Qxg6 {[%emt 0:01:33]} Bxf2+ {[%emt 0:00:50]} 26. Kh1 {[%emt 0:01:09]} hxg6 {[%emt 0:00:07]} 27. Re2 {[%emt 0:01:00]} e3 {[%emt 0:03:41]} 28. Nf1 {[%emt 0:01:29]} Rf5 {[%emt 0:06:41]} 29. Nxe3 {[%emt 0:01:48]} Bxe3 {[%emt 0:00:06]} 30. Rxe3 {[%emt 0:00:15]} Rf2 {[%emt 0:00:21]} 31. Rg3 {[%emt 0:00:35]} Rdf8 {[%emt 0:01:52]} 32. Kg1 {[%emt 0:01:55]} Rxc2 {[%emt 0:00:23]} 33. Bc1 {[%emt 0:01:03]} Rff2 {[%emt 0:00:58]} 34. Rxg6 {[%emt 0:02:59]} Rxg2+ {[%emt 0:00:07]} 35. Rxg2 {[%emt 0:00:14]} Rxg2+ {[%emt 0:00:05]} 36. Kf1 {[%emt 0:00:36]} Rxh2 {[%emt 0:00:28]} 37. Rxd6 {[%emt 0:00:15]} Rh1+ {[%emt 0:00:05]} 38. Ke2 {[%emt 0:00:30]} Rxc1 {[%emt 0:00:10]} 39. Rd8+ {[%emt 0:00:10]} Kh7 {[%emt 0:00:12]} 40. Re8 {[%emt 0:00:07]} e4 {[%emt 0:00:29]} 41. Kd2 {[%emt 0:00:40]} Ra1 {[%emt 0:00:17]} 42. Ke3 {[%emt 0:00:33]} Rxa3+ {[%emt 0:00:12]} 43. Ke2 {[%emt 0:00:14]} Rb3 {[%emt 0:00:13]} 44. Kd2 {[%emt 0:00:10]} Rxb4 {[%emt 0:00:21]} 45. Ke3 {[%emt 0:00:16]} a5 {[%emt 0:00:12]} 46. Re7 {[%emt 0:00:14]} Bd5 {[%emt 0:00:33]} 47. Rd7 {[%emt 0:00:17]} Be6 {[%emt 0:00:30]} 48. Re7 {[%emt 0:00:09]} Bf5 {[%emt 0:00:13]} 49. Rf7 {[%emt 0:00:11]} Bg6 {[%emt 0:00:09]} 50. Ra7 {[%emt 0:42:39]} a4 {[%emt 0:00:13]} 51. Rd7 {[%emt 0:00:00]} a3 {[%emt 0:00:53]} 52. Rd1 {[%emt 0:00:00]} a2 {[%emt 0:00:26]} 53. Rh1+ {[%emt 0:00:00]} Kg8 {[%emt 0:00:08]} 54. Ra1 {[%emt 0:00:00]} Bf7 {[%emt 0:00:07]} 55. Ke2 {[%emt 0:00:00]} Rb1 {[%emt 0:00:06]} 56. Rxb1 {[%emt 0:00:00]} axb1=Q {[%emt 0:00:12]} 57. Ke3 {[%emt 0:00:00]} Qd3+ {[%emt 0:00:26]} 58. Kf2 {[%emt 0:00:00]} e3+ {[%emt 0:00:18]} 59. Kg2 {[%emt 0:00:00]} e2 {[%emt 0:00:15]} 60. Kf2 {[%emt 0:00:00]} Qd2 {[%emt 0:00:07]} 61. Kg2 {[%emt 0:00:00]} e1=Q+ {[%emt 0:00:08]} 62. Kf3 {[%emt 0:00:00]} Qee3+ {[%emt 0:00:08]} 63. Kg4 {[%emt 0:00:00]} Qdd4+ {[%emt 0:00:14]} 64. Kf5 {[%emt 0:00:00]} Qee5# {[%emt 0:00:00]} 0-1

[Event "French-ch U12-U14 2024"]
[Site "Agen"]
[Date "2024.04.21"]
[Round "9.8"]
[White "Corral Nehama, Leo"]
[Black "Landolsi, Iyad"]
[Result "1/2-1/2"]
[ECO "C77"]
[WhiteElo "1910"]
[BlackElo "1970"]
[Annotator "TA"]
[PlyCount "141"]
[EventDate "2024.04.14"]
[EventType "swiss"]
[EventCountry "FRA"]
[SourceTitle "playchess.com"]
[Source "ChessBase"]
[SourceQuality "1"]
[TimeControl "5400+30"]

{[%evp 12,141,19,21,12,22,16,24,21,0,5,-16,12,9,29,5,4,0,5,-6,-14,-18,-14,-20,-24,-20,-23,-54,-61,-52,-53,-70,-42,-39,-49,-69,-41,-50,-38,-64,-48,-105,-36,-52,-45,-57,-27,-27,-5,-17,-12,-20,0,0,0,0,0,0,0,0,0,0,0,0,0,0,0,0,0,0,0,-2,0,0,0,0,0,0,0,0,0,0,0,0,0,0,0,0,0,0,0,0,0,0,0,0,0,0,0,0,0,-3,-3,-57,0,0,0,-16,0,-8,0,0,0,0,0,0,0,0,0,0,0,0,0,0,0,0,0,0,2,-8,0,0]} 1. e4 {[%emt 0:00:28]} e5 {[%emt 0:00:19]} 2. Nf3 {[%emt 0:00:28]} Nc6 {[%emt 0:00:06]} 3. Bb5 {[%emt 0:00:06][%cal Bf1b5,Bb5a4,Ba4b3][%mdl 32]} a6 {[%emt 0:00:07]} 4. Ba4 {[%emt 0:00:28]} Nf6 {[%emt 0:00:07]} 5. d3 {[%emt 0:00:50]} Bc5 {[%emt 0:00:27]} 6. Nc3 {[%emt 0:03:39]} b5 {[%emt 0:05:19]} 7. Bb3 {[%emt 0:00:01]} h6 {[%emt 0:03:02]} 8. Nd5 {[%emt 0:00:45]} d6 {[%emt 0:00:45]} 9. c3 {[%emt 0:00:23]} Be6 {[%emt 0:05:03] White has an edge.} 10. Be3 {[%emt 0:16:17]} Bxe3 {[%emt 0:03:16]} 11. fxe3 {[%emt 0:07:04]} Na5 {[%emt 0:10:54]} 12. Nxf6+ {[%emt 0:00:45]} Qxf6 {[%emt 0:00:07]} 13. Bc2 {[%emt 0:01:50]} c5 {[%emt 0:04:26]} 14. O-O {[%emt 0:01:06]} Qe7 {[%emt 0:01:02]} 15. b3 {[%emt 0:06:11]} O-O {[%emt 0:06:16]} 16. Qe1 {[%emt 0:08:53]} Nc6 {[%emt 0:07:27]} 17. Qg3 {[%emt 0:07:59]} Rac8 {[%emt 0:00:51]} 18. Nh4 {[%emt 0:10:47]} Qg5 {[%emt 0:02:39]} 19. Qxg5 {[%emt 0:04:55]} hxg5 {[%emt 0:00:06]} 20. Nf5 {[%emt 0:00:37]} Rfd8 {[%emt 0:00:46]} 21. Rad1 {[%emt 0:05:21]} g6 {[%emt 0:01:51]} 22. Ng3 {[%emt 0:00:36]} Kg7 {[%emt 0:01:02]} 23. Bb1 {[%emt 0:01:03]} f6 {[%emt 0:06:07]} 24. Rf2 {[%emt 0:04:01]} a5 {[%emt 0:03:15]} 25. Bc2 {[%emt 0:01:21]} Ra8 {[%emt 0:04:08]} 26. c4 {[%emt 0:02:54]} ({Better is} 26. d4 $15 Ne7 27. Bd3) 26... b4 {[%emt 0:01:38]} (26... Nb4 $17 27. Bb1 bxc4 28. bxc4 Rh8) 27. Ne2 $15 {[%emt 0:05:20]} Bg4 {[%emt 0:02:18]} 28. h3 {[%emt 0:02:01]} Bxe2 {[%emt 0:00:30]} 29. Rxe2 {[%emt 0:00:02] White is weak on the dark squares} Ra7 {[%emt 0:00:42]} 30. Rf2 {[%emt 0:01:12]} Rf7 {[%emt 0:03:38]} 31. Rdf1 {[%emt 0:00:21]} Ra8 {[%emt 0:00:41]} 32. Bd1 {[%emt 0:00:28]} Nd8 {[%emt 0:02:21]} 33. Kh2 {[%emt 0:03:48]} Raa7 {[%emt 0:00:55]} 34. g3 {[%emt 0:00:43]} Ra8 {[%emt 0:01:20]} 35. Kg2 {[%emt 0:00:06]} Nc6 {[%emt 0:00:51]} 36. Bg4 {[%emt 0:00:48]} Re8 {[%emt 0:03:48]} 37. Rd1 {[%emt 0:00:33]} Ra7 {[%emt 0:00:26]} 38. Rdf1 {[%emt 0:00:13]} Rf7 {[%emt 0:00:17]} 39. Kh2 {[%emt 0:01:04]} Nb8 {[%emt 0:01:31]} 40. Kg2 {[%emt 0:00:27]} Nc6 {[%emt 0:00:23]} 41. Kh2 {[%emt 0:00:00]} Nb8 {[%emt 0:00:24]} 42. Kg2 {[%emt 0:00:58]} Nc6 {[%emt 0:01:14]} 43. h4 {[%emt 0:00:49]} gxh4 {[%emt 0:00:13]} 44. gxh4 {[%emt 0:00:01]} Rh8 {[%emt 0:09:39]} 45. Kg3 {[%emt 0:01:07]} Rh6 {[%emt 0:01:00]} 46. Be6 {[%emt 0:01:04]} Rf8 {[%emt 0:00:01]} 47. Bg4 {[%emt 0:00:45]} Rf7 {[%emt 0:00:24]} 48. Rh1 {[%emt 0:01:19]} (48. Be6 $5 Rf8 $8 49. Ra1 $11) 48... Rf8 {[%emt 0:00:24]} 49. Rhf1 {[%emt 0:00:17]} Rf7 {[%emt 0:00:10]} 50. Rh2 {[%emt 0:00:09]} (50. Be6 $5 Rf8 $8 51. Bg4 $11) 50... Ne7 {[%emt 0:00:31]} 51. Rhf2 {[%emt 0:00:14]} (51. Be6 $5 Rf8 $8 52. Rhf2 $11) 51... Nc6 {[%emt 0:00:12]} 52. Be6 {[%emt 0:01:08]} Rf8 {[%emt 0:00:03]} 53. Bd7 {[%emt 0:00:12]} Ne7 {[%emt 0:00:19]} 54. Be6 {[%emt 0:00:40]} Nc6 {[%emt 0:00:24]} 55. Bg4 {[%emt 0:01:06]} Rf7 {[%emt 0:00:09]} 56. a3 {[%emt 0:01:52]} bxa3 {[%emt 0:02:07] [#] ...Nb4 would now be deadly.} 57. Ra2 {[%emt 0:00:15]} (57. Ra1 $11) 57... Rh8 {[%emt 0:01:03]} (57... Nb4 $1 $15 58. Rxa3 Nc2 (58... Nxd3 59. Rxa5 Nb4 60. Rf2 $16) 59. Rxa5 Nxe3) 58. Rxa3 $11 {[%emt 0:00:07] The position is equal.} Re7 {[%emt 0:01:36]} 59. Rb1 {[%emt 0:01:03]} Rb8 {[%emt 0:00:23]} 60. Rb2 {[%emt 0:00:11]} Rb4 {[%emt 0:00:30]} 61. Rf2 {[%emt 0:00:33]} Reb7 {[%emt 0:00:23]} 62. Bd1 {[%emt 0:00:16]} R4b6 {[%emt 0:00:13]} 63. Raa2 {[%emt 0:00:35]} Ra7 {[%emt 0:00:28]} 64. Rf1 {[%emt 0:00:50]} Rb8 {[%emt 0:00:21]} 65. Raf2 {[%emt 0:00:22]} Rf8 {[%emt 0:00:13]} 66. Kg4 {[%emt 0:00:23]} Nb4 {[%emt 0:00:28]} 67. Rd2 {[%emt 0:00:08]} Nc6 {[%emt 0:00:16]} 68. Kg3 {[%emt 0:00:23]} Kh6 {[%emt 0:00:18]} 69. Bg4 {[%emt 0:00:29]} Rb7 {[%emt 0:00:13]} 70. Bd1 {[%emt 0:00:23]} Ra7 {[%emt 0:00:17]} 71. Rdf2 {[%emt 0:02:27] Weighted Error Value: White=0.07 (flawless) /Black=0.07 (flawless) .  Mistake:       	White=2     	Black=2      Inaccurate:     	White=2     	Black=4      OK:         	White=22    	Black=17} 1/2-1/2